fUSD/lending_fUSD_20250911
["ID","MTS","AMOUNT","RATE_DAILY","PERIOD"]
[384927066,1757627511171,-400.0,0.00028493,7]
[384927067,1757627511181,-1381.33,0.00028493,7]
[384927068,1757627511190,-977.79,0.00028493,7]
[384927069,1757627511200,-596.22,0.00028493,7]
[384927070,1757627511209,-400.0,0.00028493,7]
[384927071,1757627511218,-2044.64,0.00028493,7]
[384927072,1757627511228,-400.0,0.00028493,7]
[384927073,1757627511238,-354.31301467,0.00028493,7]
[384927074,1757627511248,-1597.41,0.00028493,7]
[384927075,1757627511257,-1990.61,0.00028493,7]
[384927076,1757627511267,-429.56,0.00028493,5]
[384927077,1757627511276,-400.0,0.00028493,7]
[384927078,1757627511286,-1787.37,0.00028493,7]
[384927079,1757627511296,-871.3536526,0.00028509,2]
[384927080,1757627511306,-168.0,0.0002852,2]
[384927081,1757627511316,-291.54787688,0.00028521,5]
[384927082,1757627511326,-250.0,0.00028521,5]
[384927083,1757627511340,-1000.0,0.00028521,5]
[384927084,1757627511350,-1062.669359,0.00028557,2]
[384927085,1757627511359,-168.0,0.00028571,2]
[384927086,1757627511368,-250.0,0.00028623,2]
[384927087,1757627511378,-256.23390922,0.00028626,2]
[384927088,1757627511387,-767.42320048,0.00028666,2]
[384927089,1757627511397,-405.0,0.00028689,2]
[384927090,1757627511408,-503.24673763,0.0002876,2]
[384927091,1757627511418,-168.0,0.00028764,2]
[384927092,1757627511427,-250.0,0.00028767,2]
[384927093,1757627511436,-151.53167448,0.00028767,2]
[384927094,1757627511446,-150.0,0.00028767,7]
[384927095,1757627511456,-500.0,0.00028767,7]
[384927096,1757627511465,-154.0,0.00028767,7]
[384927097,1757627511475,-500.0,0.00028767,7]
[384927098,1757627511484,-500.0,0.00028767,7]
[384927099,1757627511494,-287.76048786,0.00028767,7]
[384927100,1757627511504,-150.0,0.00028767,7]
[384927101,1757627511514,-500.0,0.00028767,7]
[384927102,1757627511523,-200.0,0.00028767,7]
[384927103,1757627511533,-150.0,0.00028767,7]
[384927104,1757627511542,-150.0,0.00028767,7]
[384927105,1757627511551,-500.0,0.00028767,7]
[384927106,1757627511560,-500.0,0.00028767,2]
[384927107,1757627511570,-500.0,0.00028767,7]
[384927108,1757627511579,-150.0,0.00028767,2]
[384927109,1757627511588,-352.63162301,0.00028767,7]
[384927110,1757627511598,-500.0,0.00028767,7]
[384927111,1757627511608,-3492.0,0.00028767,7]
[384927112,1757627511624,-244.32323263,0.00028767,7]
[384927113,1757627511633,-173.73941331,0.00028767,7]
[384927114,1757627511643,-200.0,0.00028767,7]
[384927115,1757627511652,-198.87170554,0.00028767,7]
[384927116,1757627511662,-400.0,0.00028767,7]
[384927117,1757627511671,-400.0,0.00028767,7]
[384927118,1757627511680,-2430.85,0.00028767,7]
[384927119,1757627511689,-1000.0,0.00028767,7]
[384927120,1757627511698,-537.34,0.00028767,7]
[384927121,1757627511708,-400.0,0.00028767,7]
[384927122,1757627511718,-436.24,0.00028767,7]
[384927123,1757627511727,-622.97,0.00028767,7]
[384927124,1757627511736,-400.0,0.00028767,7]
[384927125,1757627511746,-602.77,0.00028767,7]
[384927126,1757627511755,-1543.01,0.00028767,7]
[384927127,1757627511764,-400.0,0.00028767,7]
[384927128,1757627511773,-502.36,0.00028767,7]
[384927129,1757627511783,-474.04,0.00028767,7]
[384927130,1757627511792,-607.91,0.00028767,7]
[384927131,1757627511801,-400.0,0.00028767,7]
[384927132,1757627511810,-400.0,0.00028767,7]
[384927133,1757627511819,-422.29,0.00028767,7]
[384927134,1757627511829,-521.3,0.00028767,7]
[384927135,1757627511839,-578.72,0.00028767,7]
[384927136,1757627511848,-1554.85,0.00028767,7]
[384927137,1757627511857,-400.0,0.00028767,7]
[384927138,1757627511866,-400.0,0.00028767,7]
[384927139,1757627511875,-1824.84,0.00028767,7]
[384927140,1757627511885,-1088.02,0.00028767,7]
[384927141,1757627511894,-1205.28,0.00028767,7]
[384927142,1757627511904,-432.28,0.00028767,7]
[384927143,1757627511913,-400.0,0.00028767,7]
[384927144,1757627511923,-400.0,0.00028767,7]
[384927145,1757627511932,-832.75,0.00028767,7]
[384927146,1757627511941,-400.0,0.00028767,7]
[384927147,1757627511950,-400.0,0.00028767,7]
[384927148,1757627511959,-904.85,0.00028767,7]
[384927149,1757627511969,-685.8,0.00028767,7]
[384927150,1757627511978,-517.06,0.00028767,7]
[384927151,1757627511987,-1008.26,0.00028767,7]
[384927152,1757627511997,-1113.46,0.00028767,7]
[384927153,1757627512006,-400.0,0.00028767,7]
[384927154,1757627512016,-655.45,0.00028767,7]
[384927155,1757627512025,-400.0,0.00028767,7]
[384927156,1757627512034,-400.0,0.00028767,7]
[384927157,1757627512043,-593.77,0.00028767,7]
[384927158,1757627512053,-807.62,0.00028767,7]
[384927159,1757627512062,-738.23,0.00028767,7]
[384927160,1757627512071,-567.18,0.00028767,7]
[384927161,1757627512080,-400.0,0.00028767,7]
[384927162,1757627512090,-400.0,0.00028767,7]
[384927163,1757627512100,-400.0,0.00028767,7]
[384927164,1757627512109,-400.0,0.00028767,7]
[384927165,1757627512119,-464.24,0.00028767,7]
[384927166,1757627512128,-738.23,0.00028767,7]
[384927167,1757627512137,-400.0,0.00028767,7]
[384927168,1757627512146,-400.0,0.00028767,7]
[384927169,1757627512155,-588.76,0.00028767,7]
[384927170,1757627512164,-607.0,0.00028767,7]
[384927171,1757627512174,-400.0,0.00028767,7]
[384927172,1757627512183,-595.56,0.00028767,7]
[384927173,1757627512193,-541.07,0.00028767,7]
[384927174,1757627512202,-439.31,0.00028767,7]
[384927175,1757627512211,-400.0,0.00028767,7]
[384927176,1757627512221,-995.46,0.00028767,7]
[384927177,1757627512230,-400.0,0.00028767,7]
[384927178,1757627512239,-1889.23,0.00028767,7]
[384927179,1757627512249,-400.0,0.00028767,7]
[384927180,1757627512258,-1159.7,0.00028767,7]
[384927181,1757627512267,-404.78,0.00028767,7]
[384927182,1757627512276,-400.0,0.00028767,7]
[384927183,1757627512286,-400.0,0.00028767,7]
[384927184,1757627512295,-892.23,0.00028767,7]
[384927185,1757627512304,-400.0,0.00028767,7]
[384927186,1757627512314,-568.18,0.00028767,7]
[384927187,1757627512323,-403.03,0.00028767,7]
[384927188,1757627512337,-1401.18,0.00028767,7]
[384927189,1757627512346,-458.22,0.00028767,7]
[384927190,1757627512356,-400.0,0.00028767,7]
[384927191,1757627512365,-1506.44,0.00028767,7]
[384927192,1757627512374,-400.0,0.00028767,7]
[384927193,1757627512384,-653.84,0.00028767,7]
[384927194,1757627512393,-1579.45,0.00028767,7]
[384927195,1757627512403,-400.0,0.00028767,7]
[384927196,1757627512412,-538.67977123,0.00028767,7]
[384927197,1757627512421,-596.11,0.00028767,7]
[384927198,1757627512431,-614.15,0.00028767,7]
[384927199,1757627512440,-400.0,0.00028767,7]
[384927200,1757627512449,-400.0,0.00028767,7]
[384927201,1757627512459,-400.0,0.00028767,7]
[384927202,1757627512468,-400.0,0.00028767,7]
[384927203,1757627512478,-1013.76,0.00028767,7]
[384927204,1757627512487,-400.0,0.00028767,7]
[384927205,1757627512497,-400.0,0.00028767,7]
[384927206,1757627512506,-1714.22,0.00028767,7]
[384927207,1757627512516,-517.47,0.00028767,7]
[384927208,1757627512525,-1096.07,0.00028767,7]
[384927209,1757627512534,-400.0,0.00028767,7]
[384927210,1757627512543,-1253.03,0.00028767,7]
[384927211,1757627512552,-1145.97,0.00028767,7]
[384927212,1757627512561,-400.0,0.00028767,7]
[384927213,1757627512571,-400.0,0.00028767,7]
[384927214,1757627512580,-1745.67,0.00028767,7]
[384927215,1757627512590,-400.0,0.00028767,7]
[384927216,1757627512599,-727.42,0.00028767,7]
[384927217,1757627512609,-400.0,0.00028767,7]
[384927218,1757627512619,-583.39,0.00028767,7]
[384927219,1757627512628,-400.0,0.00028767,7]
[384927220,1757627512638,-400.0,0.00028767,7]
[384927221,1757627512647,-576.54,0.00028767,7]
[384927222,1757627512656,-400.0,0.00028767,7]
[384927223,1757627512666,-1541.62,0.00028767,7]
[384927224,1757627512675,-921.85,0.00028767,7]
[384927225,1757627512684,-426.23,0.00028767,7]
[384927226,1757627512693,-400.0,0.00028767,7]
[384927227,1757627512702,-2304.65,0.00028767,7]
[384927228,1757627512711,-1433.65,0.00028767,7]
[384927229,1757627512720,-1278.47,0.00028767,7]
[384927230,1757627512729,-400.0,0.00028767,7]
[384927231,1757627512739,-400.0,0.00028767,7]
[384927232,1757627512747,-506.5,0.00028767,7]
[384927233,1757627512757,-400.0,0.00028767,7]
[384927234,1757627512766,-1307.66,0.00028767,7]
[384927235,1757627512775,-208.28075894,0.00028767,7]
[384927236,1757627512785,-400.0,0.00028767,7]
[384927237,1757627512794,-1245.35,0.00028767,7]
[384927238,1757627512803,-1371.0,0.00028767,7]
[384927239,1757627512812,-400.0,0.00028767,7]
[384927240,1757627512821,-400.0,0.00028767,7]
[384927241,1757627512830,-400.0,0.00028767,7]
[384927242,1757627512839,-506.24,0.00028767,7]
[384927243,1757627512848,-400.0,0.00028767,7]
[384927244,1757627512857,-1050.18,0.00028767,7]
[384927245,1757627512866,-400.0,0.00028767,7]
[384927246,1757627512875,-1616.64,0.00028767,7]
[384927247,1757627512883,-1120.7,0.00028767,7]
[384927248,1757627512892,-1151.78,0.00028767,7]
[384927249,1757627512901,-521.28,0.00028767,7]
[384927250,1757627512911,-1013.69,0.00028767,7]
[384927251,1757627512919,-400.0,0.00028767,7]
[384927252,1757627512928,-634.88,0.00028767,7]
[384927253,1757627512937,-400.0,0.00028767,7]
[384927254,1757627512946,-2767.55,0.00028767,7]
[384927255,1757627512956,-1117.29,0.00028767,7]
[384927256,1757627512965,-422.28,0.00028767,7]
[384927257,1757627512975,-428.8,0.00028767,7]
[384927258,1757627512984,-400.0,0.00028767,7]
[384927259,1757627512992,-1735.26,0.00028767,7]
[384927260,1757627513002,-1678.88,0.00028767,7]
[384927261,1757627513011,-400.0,0.00028767,7]
[384927262,1757627513020,-400.0,0.00028767,7]
[384927263,1757627513030,-522.94,0.00028767,7]
[384927264,1757627513039,-752.82,0.00028767,7]
[384927265,1757627513048,-412.38,0.00028767,7]
[384927266,1757627513057,-400.0,0.00028767,7]
[384927267,1757627513066,-2172.72,0.00028767,7]
[384927268,1757627513075,-479.83,0.00028767,7]
[384927269,1757627513084,-400.0,0.00028767,7]
[384927270,1757627513093,-645.68,0.00028767,7]
[384927271,1757627513102,-1991.58,0.00028767,7]
[384927272,1757627513111,-684.67,0.00028767,7]
[384927273,1757627513119,-400.0,0.00028767,7]
[384927274,1757627513128,-1865.74,0.00028767,7]
[384927275,1757627513137,-1236.15,0.00028767,7]
[384927276,1757627513146,-703.53,0.00028767,7]
[384927277,1757627513156,-2285.17,0.00028767,7]
[384927278,1757627513165,-400.0,0.00028767,7]
[384927279,1757627513174,-1603.43,0.00028767,7]
[384927280,1757627513183,-400.0,0.00028767,7]
[384927281,1757627513192,-620.1,0.00028767,7]
[384927282,1757627513201,-1983.9,0.00028767,7]
[384927283,1757627513210,-2163.46,0.00028767,7]
[384927284,1757627513219,-941.57,0.00028767,7]
[384927285,1757627513228,-400.0,0.00028767,7]
[384927286,1757627513237,-434.84,0.00028767,7]
[384927287,1757627513247,-1569.39,0.00028767,7]
[384927288,1757627513255,-415.88246142,0.00028767,7]
[384927289,1757627513264,-931.18,0.00028767,7]
[384927290,1757627513273,-400.0,0.00028767,7]
[384927291,1757627513282,-1230.65,0.00028767,7]
[384927292,1757627513291,-2317.42,0.00028767,7]
[384927293,1757627513301,-535.67,0.00028767,7]
[384927294,1757627513310,-644.68,0.00028767,7]
[384927295,1757627513319,-1234.23,0.00028767,7]
[384927296,1757627513332,-919.77,0.00028767,7]
[384927297,1757627513341,-1771.81,0.00028767,7]
[384927298,1757627513350,-400.0,0.00028767,7]
[384927299,1757627513359,-400.0,0.00028767,7]
[384927300,1757627513368,-400.0,0.00028767,7]
[384927301,1757627513377,-400.0,0.00028767,7]
[384927302,1757627513386,-508.25,0.00028767,7]
[384927303,1757627513395,-2325.79,0.00028767,7]
[384927304,1757627513405,-1609.41,0.00028767,7]
[384927305,1757627513414,-568.33,0.00028767,7]
[384927306,1757627513424,-816.93,0.00028767,7]
[384927307,1757627513434,-1798.92,0.00028767,7]
[384927308,1757627513443,-1386.18,0.00028767,7]
[384927309,1757627513452,-1213.37,0.00028767,7]
[384927310,1757627513460,-400.0,0.00028767,7]
[384927311,1757627513470,-400.0,0.00028767,7]
[384927312,1757627513479,-400.0,0.00028767,7]
[384927313,1757627513488,-1999.59,0.00028767,7]
[384927314,1757627513497,-1552.95,0.00028767,7]
[384927315,1757627513506,-400.0,0.00028767,7]
[384927316,1757627513515,-403.06,0.00028767,7]
[384927317,1757627513524,-1732.83,0.00028767,7]
[384927318,1757627513533,-400.0,0.00028767,7]
[384927319,1757627513542,-465.53,0.00028767,7]
[384927320,1757627513551,-400.0,0.00028767,7]
[384927321,1757627513560,-709.04,0.00028767,7]
[384927322,1757627513569,-955.01,0.00028767,7]
[384927323,1757627513579,-400.0,0.00028767,7]
[384927324,1757627513588,-2037.8,0.00028767,7]
[384927325,1757627513596,-400.0,0.00028767,7]
[384927326,1757627513606,-1760.98,0.00028767,7]
[384927327,1757627513614,-1465.12,0.00028767,7]
[384927328,1757627513623,-943.48,0.00028767,7]
[384927329,1757627513633,-897.82,0.00028767,7]
[384927330,1757627513642,-400.0,0.00028767,7]
[384927331,1757627513651,-737.11,0.00028767,7]
[384927332,1757627513660,-674.73,0.00028767,7]
[384927333,1757627513669,-666.9,0.00028767,7]
[384927334,1757627513679,-2358.03,0.00028767,7]
[384927335,1757627513689,-400.0,0.00028767,7]
[384927336,1757627513698,-423.19159817,0.00028767,7]
[384927337,1757627513707,-1950.94,0.00028767,7]
[384927338,1757627513715,-2454.36,0.00028767,7]
[384927339,1757627513724,-400.0,0.00028767,7]
[384927340,1757627513734,-781.35,0.00028767,7]
[384927341,1757627513743,-1589.11,0.00028767,7]
[384927342,1757627513752,-610.63,0.00028767,7]
[384927343,1757627513761,-1911.65,0.00028767,7]
[384927344,1757627513770,-645.89,0.00028767,7]
[384927345,1757627513780,-400.0,0.00028767,7]
[384927346,1757627513789,-400.0,0.00028767,7]
[384927347,1757627513799,-429.42,0.00028767,7]
[384927348,1757627513808,-1761.27,0.00028767,7]
[384927349,1757627513817,-2211.08,0.00028767,7]
[384927350,1757627513827,-1275.46,0.00028767,7]
[384927351,1757627513836,-452.08,0.00028767,7]
[384927352,1757627513845,-903.15,0.00028767,7]
[384927353,1757627513855,-730.4,0.00028767,7]
[384927354,1757627513864,-1244.21,0.00028767,7]
[384927355,1757627513874,-1272.64,0.00028767,7]
[384927356,1757627513883,-2147.52,0.00028767,7]
[384927357,1757627513893,-1608.5,0.00028767,7]
[384927358,1757627513902,-474.19,0.00028767,7]
[384927359,1757627513912,-400.0,0.00028767,2]
[384927360,1757627513921,-468.6,0.00028767,7]
[384927361,1757627513930,-726.05,0.00028767,7]
[384927362,1757627513940,-1333.63,0.00028767,7]
[384927363,1757627513949,-2117.57,0.00028767,7]
[384927364,1757627513958,-2353.72,0.00028767,7]
[384927365,1757627513968,-416.08615032,0.00028767,7]
[384927366,1757627513977,-410.31,0.00028767,7]
[384927367,1757627513986,-400.0,0.00028767,7]
[384927368,1757627513995,-400.0,0.00028767,7]
[384927369,1757627514004,-400.0,0.00028767,7]
[384927370,1757627514013,-792.77,0.00028767,7]
[384927371,1757627514022,-2010.24,0.00028767,7]
[384927372,1757627514031,-564.18,0.00028767,7]
[384927373,1757627514040,-1805.19,0.00028767,7]
[384927374,1757627514049,-400.0,0.00028767,7]
[384927375,1757627514297,-1520.22,0.00028767,7]
[384927376,1757627514307,-825.64,0.00028767,7]
[384927377,1757627514317,-1290.72,0.00028767,7]
[384927378,1757627514326,-1603.55,0.00028767,7]
[384927379,1757627514338,-1459.31,0.00028767,7]
[384927380,1757627514347,-2714.64,0.00028767,7]
[384927381,1757627514356,-909.86,0.00028767,7]
[384927382,1757627514365,-1370.73,0.00028767,7]
[384927383,1757627514375,-2356.36,0.00028767,7]
[384927384,1757627514384,-820.52,0.00028767,7]
[384927385,1757627514394,-1552.2,0.00028767,7]
[384927386,1757627514403,-832.81,0.00028767,7]
[384927387,1757627514412,-980.62,0.00028767,7]
[384927388,1757627514422,-436.16,0.00028767,7]
[384927389,1757627514435,-2368.21,0.00028767,7]
[384927390,1757627514444,-2310.49,0.00028767,7]
[384927391,1757627514454,-751.05,0.00028767,7]
[384927392,1757627514463,-521.56,0.00028767,7]
[384927393,1757627514472,-690.1,0.00028767,7]
[384927394,1757627514481,-614.59,0.00028767,7]
[384927395,1757627514491,-1138.65,0.00028767,7]
[384927396,1757627514500,-1234.09,0.00028767,7]
[384927397,1757627514509,-1139.8,0.00028767,7]
[384927398,1757627514518,-1357.28,0.00028767,7]
[384927399,1757627514528,-483.0,0.00028767,7]
[384927400,1757627514537,-2221.87,0.00028767,7]
[384927401,1757627514547,-764.53,0.00028767,7]
[384927402,1757627514556,-459.47155887,0.00028767,7]
[384927403,1757627514565,-400.0,0.00028767,7]
[384927404,1757627514575,-616.29,0.00028767,7]
[384927405,1757627514585,-893.59,0.00028767,7]
[384927406,1757627514594,-497.07,0.00028767,7]
[384927407,1757627514603,-2494.05,0.00028767,7]
[384927408,1757627514613,-1961.97,0.00028767,7]
[384927409,1757627514622,-715.83,0.00028767,7]
[384927410,1757627514631,-400.0,0.00028767,7]
[384927411,1757627514641,-400.0,0.00028767,7]
[384927412,1757627514650,-2400.41,0.00028767,7]
[384927413,1757627514660,-400.0,0.00028767,7]
[384927414,1757627514669,-400.0,0.00028767,7]
[384927415,1757627514678,-1350.64,0.00028767,7]
[384927416,1757627514687,-400.0,0.00028767,7]
[384927417,1757627514696,-1152.15,0.00028767,7]
[384927418,1757627514706,-1942.36,0.00028767,7]
[384927419,1757627514715,-400.0,0.00028767,7]
[384927420,1757627514724,-1745.53,0.00028767,7]
[384927421,1757627514733,-400.0,0.00028767,7]
[384927422,1757627514742,-1304.87,0.00028767,7]
[384927423,1757627514751,-2239.53,0.00028767,7]
[384927424,1757627514761,-1080.41,0.00028767,7]
[384927425,1757627514769,-1587.86,0.00028767,7]
[384927426,1757627514778,-400.0,0.00028767,7]
[384927427,1757627514788,-772.24,0.00028767,7]
[384927428,1757627514797,-1535.99,0.00028767,7]
[384927429,1757627514807,-400.0,0.00028767,7]
[384927430,1757627514816,-1709.93,0.00028767,7]
[384927431,1757627514825,-681.33,0.00028767,7]
[384927432,1757627514835,-827.79,0.00028767,7]
[384927433,1757627514844,-1405.7,0.00028767,7]
[384927434,1757627514852,-1894.71,0.00028767,7]
[384927435,1757627514861,-1305.44,0.00028767,7]
[384927436,1757627514870,-670.2,0.00028767,7]
[384927437,1757627514878,-2336.96,0.00028767,7]
[384927438,1757627514887,-206.01747842,0.00028767,7]
[384927439,1757627514896,-663.76,0.00028767,7]
[384927440,1757627514905,-1721.31,0.00028767,7]
[384927441,1757627514914,-400.0,0.00028767,7]
[384927442,1757627514923,-2672.17,0.00028767,7]
[384927443,1757627514932,-1652.48,0.00028767,7]
[384927444,1757627514941,-1555.35,0.00028767,7]
[384927445,1757627514951,-400.0,0.00028767,7]
[384927446,1757627514960,-400.0,0.00028767,7]
[384927447,1757627514970,-1705.56,0.00028767,7]
[384927448,1757627514979,-400.0,0.00028767,7]
[384927449,1757627514988,-400.0,0.00028767,7]
[384927450,1757627514997,-900.41,0.00028767,7]
[384927451,1757627515007,-897.52,0.00028767,7]
[384927452,1757627515016,-1924.73,0.00028767,7]
[384927453,1757627515025,-400.0,0.00028767,7]
[384927454,1757627515035,-2279.93,0.00028767,7]
[384927455,1757627515044,-2115.38,0.00028767,7]
[384927456,1757627515053,-400.0,0.00028767,7]
[384927457,1757627515062,-622.31,0.00028767,7]
[384927458,1757627515071,-1153.84,0.00028767,7]
[384927459,1757627515080,-400.0,0.00028767,7]
[384927460,1757627515089,-519.0,0.00028767,7]
[384927461,1757627515098,-1849.34,0.00028767,7]
[384927462,1757627515108,-400.0,0.00028767,7]
[384927463,1757627515118,-1244.32,0.00028767,7]
[384927464,1757627515127,-418.22,0.00028767,7]
[384927465,1757627515136,-1903.92,0.00028767,7]
[384927466,1757627515145,-926.52,0.00028767,7]
[384927467,1757627515155,-2054.75,0.00028767,7]
[384927468,1757627515164,-2269.52,0.00028767,7]
[384927469,1757627515173,-891.18,0.00028767,7]
[384927470,1757627515182,-774.47,0.00028767,7]
[384927471,1757627515191,-1816.52,0.00028767,7]
[384927472,1757627515200,-400.0,0.00028767,7]
[384927473,1757627515209,-1861.78,0.00028767,7]
[384927474,1757627515218,-1516.31,0.00028767,7]
[384927475,1757627515228,-1776.85,0.00028767,7]
[384927476,1757627515236,-400.0,0.00028767,7]
[384927477,1757627515246,-400.0,0.00028767,7]
[384927478,1757627515255,-777.81,0.00028767,7]
[384927479,1757627515264,-946.01,0.00028767,7]
[384927480,1757627515273,-1366.26,0.00028767,7]
[384927481,1757627515282,-400.0,0.00028767,7]
[384927482,1757627515291,-2170.93,0.00028767,7]
[384927483,1757627515299,-619.87,0.00028767,7]
[384927484,1757627515309,-544.78,0.00028767,7]
[384927485,1757627515318,-418.90773644,0.00028767,7]
[384927486,1757627515328,-400.0,0.00028767,7]
[384927487,1757627515338,-2122.23,0.00028767,7]
[384927488,1757627515347,-400.0,0.00028767,7]
[384927489,1757627515356,-1168.45,0.00028767,7]
[384927490,1757627515366,-928.76,0.00028767,7]
[384927491,1757627515376,-1186.62,0.00028767,7]
[384927492,1757627515385,-1039.0,0.00028767,7]
[384927493,1757627515395,-400.0,0.00028767,7]
[384927494,1757627515405,-1372.99,0.00028767,7]
[384927495,1757627515415,-525.55,0.00028767,7]
[384927496,1757627515425,-400.0,0.00028767,7]
[384927497,1757627515435,-1647.59,0.00028767,7]
[384927498,1757627515445,-730.82,0.00028767,7]
[384927499,1757627515454,-451.69,0.00028767,7]
[384927500,1757627515464,-1488.12,0.00028767,7]
[384927501,1757627515473,-400.0,0.00028767,7]
[384927502,1757627515482,-2407.69,0.00028767,7]
[384927503,1757627515491,-400.0,0.00028767,7]
[384927504,1757627515500,-1661.64,0.00028767,7]
[384927505,1757627515509,-1847.44,0.00028767,7]
[384927506,1757627515519,-812.44,0.00028767,7]
[384927507,1757627515528,-2974.72,0.00028767,7]
[384927508,1757627515538,-2154.39,0.00028767,7]
[384927509,1757627515547,-403.83060917,0.00028767,7]
[384927510,1757627515557,-400.0,0.00028767,7]
[384927511,1757627515566,-2409.57,0.00028767,7]
[384927512,1757627515575,-1505.1,0.00028767,7]
[384927513,1757627515584,-826.95,0.00028767,7]
[384927514,1757627515593,-2357.19,0.00028767,7]
[384927515,1757627515602,-415.59,0.00028767,7]
[384927516,1757627515611,-400.0,0.00028767,7]
[384927517,1757627515620,-1209.2,0.00028767,7]
[384927518,1757627515629,-1222.72,0.00028767,7]
[384927519,1757627515638,-2029.82,0.00028767,7]
[384927520,1757627515647,-2376.92,0.00028767,7]
[384927521,1757627515656,-1576.35,0.00028767,7]
[384927522,1757627515665,-467.93,0.00028767,7]
[384927523,1757627515674,-400.0,0.00028767,7]
[384927524,1757627515683,-400.0,0.00028767,7]
[384927525,1757627515692,-619.65,0.00028767,7]
[384927526,1757627515701,-831.1,0.00028767,7]
[384927527,1757627515711,-2286.96,0.00028767,7]
[384927528,1757627515721,-400.0,0.00028767,7]
[384927529,1757627515730,-683.59,0.00028767,7]
[384927530,1757627515739,-663.74,0.00028767,7]
[384927531,1757627515749,-400.0,0.00028767,7]
[384927532,1757627515758,-517.61,0.00028767,7]
[384927533,1757627515767,-753.25,0.00028767,7]
[384927534,1757627515776,-2533.56,0.00028767,7]
[384927535,1757627515785,-400.0,0.00028767,7]
[384927536,1757627515794,-1527.86,0.00028767,7]
[384927537,1757627515803,-400.0,0.00028767,7]
[384927538,1757627515815,-1146.83,0.00028767,7]
[384927539,1757627515825,-400.0,0.00028767,7]
[384927540,1757627515834,-1894.11,0.00028767,7]
[384927541,1757627515844,-487.19,0.00028767,7]
[384927542,1757627515853,-1816.71,0.00028767,7]
[384927543,1757627515863,-621.23,0.00028767,7]
[384927544,1757627515873,-636.93,0.00028767,7]
[384927545,1757627515891,-597.77,0.00028767,7]
[384927546,1757627515911,-1978.38,0.00028767,7]
[384927547,1757627515930,-412.24135,0.00028767,7]
[384927548,1757627515950,-804.92,0.00028767,7]
[384927549,1757627515966,-1032.8,0.00028767,7]
[384927550,1757627515985,-400.0,0.00028767,7]
[384927551,1757627516004,-2188.58,0.00028767,7]
[384927552,1757627516024,-1200.87,0.00028767,7]
[384927553,1757627516042,-783.81,0.00028767,7]
[384927554,1757627516061,-1046.78,0.00028767,7]
[384927555,1757627516078,-1611.77,0.00028767,7]
[384927556,1757627516091,-434.23,0.00028767,7]
[384927557,1757627516110,-400.0,0.00028767,7]
[384927558,1757627516126,-2777.49,0.00028767,7]
[384927559,1757627516142,-467.51,0.00028767,7]
[384927560,1757627516160,-2380.05,0.00028767,7]
[384927561,1757627516176,-400.0,0.00028767,7]
[384927562,1757627516192,-400.0,0.00028767,7]
[384927563,1757627516208,-432.14,0.00028767,7]
[384927564,1757627516224,-936.21,0.00028767,7]
[384927565,1757627516241,-400.0,0.00028767,7]